bitfinex/quotes_ETHUSD_20250505
["timestamp","ask_amount","ask_price","bid_price","bid_amount"]
[1746444875102,5.53387725,1807.1,1806.9,3.92398473]
[1746444875520,11.06784947,1807.1,1806.9,3.92398473]
[1746444875833,5.53387725,1807.1,1806.9,3.92398473]
[1746444876130,5.53403431,1807.0,1806.9,3.92398473]
[1746444876914,5.5339363,1807.1,1806.9,3.92398473]
[1746444877235,11.06795221,1807.1,1806.9,3.92398473]
[1746444877442,5.5339363,1807.1,1806.9,3.92398473]
[1746444878045,5.53322545,1807.3,1807.1,3.3136848]
[1746444878212,5.53342186,1807.2,1807.1,3.3136848]
[1746444878619,5.53372807,1807.1,1807.0,2.74556767]
[1746444879711,5.53372807,1807.1,1806.9,2.76030469]
[1746444880410,5.53403431,1807.0,1806.9,3.31030469]
[1746444881622,5.53372807,1807.1,1806.9,3.31030469]
[1746444882021,5.95159573,1807.2,1806.9,3.31030469]
[1746444882223,5.53376424,1807.1,1806.9,3.31030469]
[1746444882673,5.53376424,1807.1,1807.0,3.29556767]
[1746444884345,5.95159573,1807.2,1807.0,3.29556767]
[1746444884645,5.53372807,1807.1,1807.0,4.05576767]
[1746444884852,5.53372807,1807.1,1807.0,3.29556767]
[1746444885845,11.48525728,1807.2,1807.0,3.29556767]
[1746444886054,5.95159573,1807.2,1807.0,3.29556767]
[1746444886762,5.53372807,1807.1,1807.0,3.29556767]
[1746444888045,5.95159573,1807.2,1807.0,3.29556767]
[1746444888246,11.48531386,1807.2,1807.0,3.29556767]
[1746444888448,5.53372807,1807.1,1807.0,3.29556767]
[1746444890567,5.53403431,1807.0,1806.9,2.76030469]
[1746444891129,5.53372807,1807.1,1806.9,2.76030469]
[1746444891469,5.53389553,1807.1,1807.0,3.29556767]
[1746444891968,0.41802445,1807.2,1807.0,3.72667863]
[1746444892188,7.76,1807.4,1807.3,3.29606024]
[1746444892189,4.76,1807.4,1807.3,3.29606024]
[1746444892531,5.53233725,1807.6,1807.3,3.7271712]
[1746444892767,5.53233725,1807.6,1807.5,3.27672891]
[1746444894968,5.53250345,1807.5,1807.4,2.74458743]
[1746444895175,5.53280956,1807.4,1807.3,3.29606024]
[1746444895369,5.53280956,1807.4,1807.3,2.74606024]
[1746444897273,8.53280956,1807.4,1807.3,2.74606024]
[1746444898076,5.53363694,1807.2,1807.0,3.72667863]
[1746444898672,5.95260204,1807.2,1807.0,3.72667863]
[1746444898975,5.95239137,1807.2,1807.0,3.72667863]
[1746444899643,5.95255358,1807.2,1807.0,4.12335867]
[1746444900273,4.746,1807.4,1807.3,2.74606024]
[1746444900476,10.69210586,1807.7,1807.4,2.74458743]
[1746444900648,5.94610586,1807.7,1807.6,3.32130428]
[1746444900853,5.94610586,1807.7,1807.6,3.75241524]
[1746444901049,4.746,1807.8,1807.6,3.75241524]
[1746444901378,5.53116749,1808.0,1807.7,4.87312299]
[1746444901593,5.53128239,1807.9,1807.7,4.87312299]
[1746444902359,5.531193,1808.0,1807.7,4.87312299]
[1746444902561,10.27682117,1808.1,1807.8,2.74365066]
[1746444902802,4.746,1808.1,1808.0,3.31234544]
[1746444902964,10.27622558,1808.3,1808.0,4.5221564]
[1746444903159,10.27622558,1808.3,1808.1,0.43111096]
[1746444903393,10.27622558,1808.3,1808.2,2.71046339]
[1746444903562,5.52988531,1808.4,1808.3,0.55]
[1746444903761,5.52988531,1808.4,1808.3,3.25776633]
[1746444903981,8.52988531,1808.4,1808.3,3.25776633]
[1746444904169,9.14841742,1808.4,1808.3,2.70776633]
[1746444904373,5.53036168,1808.2,1808.1,3.32237835]
[1746444904793,14.05986062,1808.4,1808.2,0.55]
[1746444905096,5.53005585,1808.3,1808.2,3.26046339]
[1746444905461,8.52976904,1808.4,1808.2,3.26046339]
[1746444905796,8.52976904,1808.4,1808.2,3.69157435]
[1746444905997,5.52976904,1808.4,1808.2,4.12908772]
[1746444906385,10.27526399,1808.6,1808.4,2.70844163]
[1746444906589,5.5294699,1808.5,1808.3,3.91527729]
[1746444906895,5.52975005,1808.4,1808.3,4.46527729]
[1746444907584,10.69092875,1808.6,1808.5,2.71705886]
[1746444907785,5.52944429,1808.5,1808.4,2.70844163]
[1746444907968,5.52944429,1808.5,1808.4,3.25844163]
[1746444909359,7.746,1808.6,1808.4,3.25844163]
[1746444909772,4.746,1808.6,1808.5,3.26705886]
[1746444910177,10.27513856,1808.6,1808.5,3.26705886]
[1746444910386,10.27513856,1808.6,1808.5,2.71705886]
[1746444910585,5.52944429,1808.5,1808.4,2.70844163]
[1746444911875,5.52975005,1808.4,1808.3,2.70776633]
[1746444914405,5.52975005,1808.4,1808.3,3.13887729]
[1746444915505,5.52975005,1808.4,1808.3,2.70776633]
[1746444917097,5.52975005,1808.4,1808.3,3.25776633]
[1746444918085,5.5294515,1808.5,1808.3,3.68887729]
[1746444918273,5.5294515,1808.5,1808.4,0.43111096]
[1746444918472,5.5294515,1808.5,1808.4,3.13955259]
[1746444918702,5.53046973,1808.5,1808.4,3.13955259]
[1746444919573,5.53046973,1808.5,1808.4,2.70844163]
[1746444920232,5.53046973,1808.5,1808.3,2.70776633]
[1746444920233,5.52975005,1808.4,1808.3,2.70776633]
[1746444921102,0.00101823,1808.5,1808.3,3.13887729]
[1746444921278,5.53055948,1808.5,1808.4,3.13955259]
[1746444923015,5.53046252,1808.5,1808.4,3.68955259]
[1746444924290,5.53046252,1808.5,1808.4,3.13955259]
[1746444924490,5.53046252,1808.5,1808.3,3.25776633]
[1746444924491,5.52975005,1808.4,1808.3,3.25776633]
[1746444926019,5.52975005,1808.4,1808.3,3.68887729]
[1746444926636,5.53046252,1808.5,1808.3,3.68887729]
[1746444926824,5.53046252,1808.5,1808.4,3.13955259]
[1746444930607,0.00101823,1808.5,1808.4,4.50825259]
[1746444930806,0.00101823,1808.5,1808.4,4.98409929]
[1746444931226,0.00101823,1808.5,1808.4,6.04102357]
[1746444932432,0.00101823,1808.5,1808.4,4.98409929]
[1746444932743,5.53046252,1808.5,1808.4,4.98409929]
[1746444933039,0.00101823,1808.5,1808.4,4.98409929]
[1746444933404,5.53046252,1808.5,1808.4,4.98409929]
[1746444933601,5.53046252,1808.5,1808.4,3.18428833]
[1746444936155,10.28727209,1808.5,1808.4,3.18428833]
[1746444936522,10.28744429,1808.5,1808.4,3.18428833]
[1746444939754,10.28744429,1808.5,1808.4,4.1674885]
[1746444939954,4.758,1808.5,1808.4,4.1674885]
[1746444940173,10.28744429,1808.5,1808.4,4.1674885]
[1746444942802,5.52944429,1808.5,1808.4,4.9373885]
[1746444943576,13.28825532,1808.6,1808.5,3.26705886]
[1746444943736,13.28825532,1808.6,1808.5,3.74290556]
[1746444945256,13.28825532,1808.6,1808.5,4.17401652]
[1746444945580,8.52925532,1808.6,1808.5,4.17401652]
[1746444946270,5.52925532,1808.6,1808.5,4.17401652]
[1746444946886,10.69389875,1808.7,1808.5,4.17401652]
[1746444947090,13.69389875,1808.7,1808.6,0.90695766]
[1746444947272,13.69389875,1808.7,1808.6,3.6335831]
[1746444947808,10.69389875,1808.7,1808.6,3.6335831]
[1746444949316,10.69389875,1808.7,1808.6,6.59799508]
[1746444950879,10.69389875,1808.7,1808.6,6.16688412]
[1746444951820,13.69389875,1808.7,1808.6,6.16688412]
[1746444952725,13.69389875,1808.7,1808.6,5.69103742]
[1746444955113,13.69389875,1808.7,1808.6,6.12214838]
[1746444958493,13.69389875,1808.7,1808.6,6.59799508]
[1746444959620,10.69389875,1808.7,1808.6,6.59799508]
[1746444960723,5.16492836,1808.7,1808.6,6.59799508]
[1746444961139,10.69376122,1808.7,1808.6,6.59799508]
[1746444962209,5.16492836,1808.7,1808.6,6.59799508]
[1746444962604,0.40592836,1808.7,1808.6,7.14799508]
[1746444962824,5.52864697,1808.8,1808.7,0.55]
[1746444963138,5.52864697,1808.8,1808.7,1.0258467]
[1746444963310,5.52864697,1808.8,1808.7,3.7454778]
[1746444963841,5.94151656,1808.8,1808.7,4.17658876]
[1746444964140,5.94151656,1808.8,1808.7,3.62658876]
[1746444965940,8.94151656,1808.8,1808.7,2.7196311]
[1746444966115,8.94152592,1808.8,1808.7,2.7196311]
[1746444967719,8.94152592,1808.8,1808.7,2.72205547]
[1746444967923,11.92139914,1808.8,1808.7,2.72205547]
[1746444968828,5.52883286,1808.7,1808.6,2.73511463]
[1746444969028,8.52883286,1808.7,1808.6,2.73511463]
[1746444970616,8.52913856,1808.6,1808.5,3.27205657]
[1746444971629,10.89047967,1808.6,1808.5,3.27205657]
[1746444971828,8.52944429,1808.5,1808.4,2.73368329]
[1746444972029,12.81233333,1808.5,1808.4,2.73368329]
[1746444972222,13.60434614,1808.5,1808.4,2.73368329]
[1746444972427,15.96568725,1808.5,1808.4,2.73368329]
[1746444976978,13.60434614,1808.5,1808.4,2.73368329]
[1746444977157,12.81233333,1808.5,1808.4,3.12886833]
[1746444979483,4.714,1808.5,1808.4,3.12886833]
[1746444979646,5.52913856,1808.6,1808.4,4.66150679]
[1746444979847,10.24388799,1808.7,1808.6,2.72713764]
[1746444980047,0.41286959,1808.8,1808.6,3.72994685]
[1746444980371,5.52869629,1808.8,1808.7,0.85736084]
[1746444980555,5.52869629,1808.8,1808.7,3.60169613]
[1746444980761,10.24334913,1808.9,1808.7,4.42499613]
[1746444980959,5.52804775,1809.0,1808.8,3.25317955]
[1746444981271,5.52806106,1809.0,1808.9,0.45280921]
[1746444981687,5.93923997,1809.0,1808.9,0.45280921]
[1746444981982,0.41117891,1809.0,1808.9,0.45280921]
[1746444982150,10.24279768,1809.1,1808.9,0.45280921]
[1746444983085,10.24279768,1809.1,1808.9,3.22132927]
[1746444983272,18.0,1809.0,1808.9,3.22132927]
[1746444983882,23.52791597,1809.0,1808.9,3.22132927]
[1746444984456,23.52791597,1809.0,1808.9,2.76852006]
[1746444984658,24.26911319,1809.0,1808.8,2.70317955]
[1746444984875,5.5285272,1808.8,1808.7,3.29433529]
[1746444986991,23.5285272,1808.8,1808.7,3.29433529]
[1746444987179,5.5285272,1808.8,1808.7,3.29433529]
[1746444987380,5.52842249,1808.9,1808.7,3.29433529]
[1746444987586,5.5285272,1808.8,1808.7,2.74433529]
[1746444987912,5.5285272,1808.8,1808.6,2.72713764]
[1746444987913,5.52883286,1808.7,1808.6,2.72713764]
[1746444988103,13.23583286,1808.7,1808.6,2.72713764]
[1746444989400,5.52913856,1808.6,1808.5,2.72094549]
[1746444989773,7.89047967,1808.6,1808.5,2.72094549]
[1746444989979,10.89047967,1808.6,1808.5,2.72094549]
[1746444990501,11.63167689,1808.6,1808.5,2.72094549]
[1746444993811,11.63167689,1808.6,1808.3,2.79591019]
[1746444994110,11.63167689,1808.6,1808.3,3.2487194]
[1746444994111,8.52975005,1808.4,1808.3,3.2487194]
[1746444994814,8.52975005,1808.4,1808.3,4.0550194]
[1746444996219,4.708,1808.5,1808.3,5.01073028]
[1746444996515,4.708,1808.5,1808.4,3.98784244]
[1746444996813,4.708,1808.5,1808.4,4.53993165]
[1746444997116,4.708,1808.5,1808.4,4.94448328]
[1746444998595,4.708,1808.5,1808.4,10.47423333]
[1746444998807,4.708,1808.5,1808.4,9.55628903]
[1746444999020,11.05795752,1808.7,1808.5,2.72094549]
[1746444999219,5.52913856,1808.6,1808.5,3.7237547]
[1746444999517,5.52913856,1808.6,1808.5,2.72094549]
[1746445000021,10.23667322,1808.8,1808.5,2.72094549]
[1746445000185,7.708,1808.8,1808.7,2.74433529]
[1746445000386,7.708,1808.8,1808.7,3.7471445]
[1746445000601,13.2365272,1808.8,1808.7,3.7471445]
[1746445000799,10.2365272,1808.8,1808.7,3.7471445]
[1746445002250,4.708,1808.8,1808.7,4.5134445]
[1746445002416,4.708,1808.8,1808.7,4.96478895]
[1746445002622,10.2365272,1808.8,1808.7,4.96478895]
[1746445002857,10.2365272,1808.8,1808.7,4.5134445]
[1746445003357,10.2365272,1808.8,1808.7,3.29433529]
[1746445003758,10.2365272,1808.8,1808.7,2.74433529]
[1746445004761,5.52883286,1808.7,1808.6,2.72713764]
[1746445005521,9.27003008,1808.7,1808.6,2.72713764]
[1746445006257,5.52975005,1808.4,1808.3,2.79591019]
[1746445006562,10.23675005,1808.4,1808.3,2.79591019]
[1746445007482,10.23675005,1808.4,1808.3,4.0012194]
[1746445007773,4.707,1808.4,1808.3,5.43301163]
[1746445008270,10.23675005,1808.4,1808.3,6.9667099]
[1746445008439,10.23675005,1808.4,1808.3,6.2142099]
[1746445008872,10.23466084,1808.4,1808.3,6.2142099]
[1746445009095,7.75749803,1808.4,1808.3,6.2142099]
[1746445011685,7.75749803,1808.4,1808.3,6.7642099]
[1746445011848,2.22774798,1808.4,1808.3,6.7642099]
[1746445012240,7.75749803,1808.4,1808.3,6.7642099]
[1746445013246,2.22774798,1808.4,1808.3,6.7642099]
[1746445013540,7.75749803,1808.4,1808.3,6.7642099]
[1746445014078,7.38785861,1808.4,1808.3,6.7642099]
[1746445017594,1.85810856,1808.4,1808.3,6.7642099]
[1746445018396,7.38785861,1808.4,1808.3,6.7642099]
[1746445019991,1.85810856,1808.4,1808.3,6.7642099]
[1746445020181,7.38785861,1808.4,1808.3,6.7642099]
[1746445020896,1.85810856,1808.4,1808.3,6.7642099]
[1746445021282,7.38785861,1808.4,1808.3,6.7642099]
[1746445021584,10.23197241,1808.7,1808.4,8.30316734]
[1746445021776,4.703,1808.7,1808.6,3.48743764]
[1746445022091,4.703,1808.7,1808.6,3.94024685]
[1746445022993,10.23183286,1808.7,1808.6,3.94024685]
[1746445023393,10.23183286,1808.7,1808.6,3.48743764]
[1746445023595,8.57750578,1808.7,1808.6,3.48743764]
[1746445024677,3.04867292,1808.7,1808.6,3.48743764]
[1746445025008,8.57750578,1808.7,1808.6,3.48743764]
[1746445025521,8.57750578,1808.7,1808.6,6.45292814]
[1746445025794,8.57750578,1808.7,1808.6,5.69262814]
[1746445025988,3.04867292,1808.7,1808.6,5.69262814]
[1746445026189,8.57750578,1808.7,1808.6,5.69262814]
[1746445027817,3.04867292,1808.7,1808.6,6.51832814]
[1746445028014,3.04867292,1808.7,1808.6,8.22119308]
[1746445028219,3.04867292,1808.7,1808.6,13.75033164]
[1746445028386,3.04867292,1808.7,1808.6,8.22119308]
[1746445028585,3.04867292,1808.7,1808.6,6.97113735]
[1746445029888,8.57750578,1808.7,1808.6,6.97113735]
[1746445030089,5.52984226,1808.8,1808.6,6.97113735]
[1746445030500,11.05864708,1808.8,1808.6,6.97113735]
[1746445030922,5.52883286,1808.7,1808.6,6.97113735]
[1746445031841,11.63165592,1808.7,1808.6,5.69262814]
[1746445033409,5.52975005,1808.4,1808.3,7.51600136]
[1746445033609,10.89137589,1808.4,1808.3,7.51600136]
[1746445033813,12.90493287,1808.4,1808.3,7.51600136]
[1746445034529,8.52975005,1808.4,1808.3,7.96881057]
[1746445036046,8.52975005,1808.4,1808.3,3.15419708]
[1746445037131,5.52957768,1808.5,1808.3,4.48289708]
[1746445037340,5.52957768,1808.5,1808.4,3.21701357]
[1746445039252,9.2707749,1808.5,1808.4,3.21701357]
[1746445039456,8.52975005,1808.4,1808.3,2.77617165]
[1746445040252,8.52975005,1808.4,1808.3,3.22898086]
[1746445042962,8.52975005,1808.4,1808.3,6.95532054]
[1746445044550,5.53066755,1808.1,1808.0,3.20345745]
[1746445044757,5.53097345,1808.0,1807.9,2.71736818]
[1746445045474,5.53097345,1808.0,1807.8,7.54996969]
[1746445045475,5.53127938,1807.9,1807.8,7.54996969]
[1746445045649,5.53219738,1807.6,1807.5,8.68587158]
[1746445045827,10.22119738,1807.6,1807.5,8.68587158]
[1746445047269,13.22119738,1807.6,1807.5,8.68587158]
[1746445047429,13.9623946,1807.6,1807.5,8.68587158]
[1746445048075,13.9623946,1807.6,1807.5,2.73226226]
[1746445048627,8.53280956,1807.4,1807.3,6.64678209]
[1746445051287,8.53280956,1807.4,1807.3,3.27108879]
[1746445051566,5.53311569,1807.3,1807.2,9.83449992]
[1746445051769,5.53342186,1807.2,1807.0,2.741303]
[1746445051968,17.59891089,1807.1,1807.0,2.741303]
[1746445052767,17.59891089,1807.1,1806.5,2.70152635]
[1746445052768,5.5352596,1806.6,1806.5,2.70152635]
[1746445053059,10.2262596,1806.6,1806.5,2.70152635]
[1746445053257,13.2262596,1806.6,1806.5,3.08201187]
[1746445054643,13.6394303,1806.6,1806.5,3.08201187]
[1746445055055,13.2262596,1806.6,1806.5,3.08201187]
[1746445055365,8.53587245,1806.4,1806.3,2.72353681]
[1746445055667,8.53587245,1806.4,1806.3,3.10402233]
[1746445058658,5.53576736,1806.5,1806.3,3.10402233]
[1746445058958,5.53587245,1806.4,1806.3,3.10402233]
[1746445059263,5.53576736,1806.5,1806.3,3.10402233]
[1746445060255,5.53576736,1806.5,1806.3,3.65402233]
[1746445060432,4.693,1806.9,1806.4,3.57851351]
[1746445060637,10.22753275,1806.9,1806.6,2.75128778]
[1746445060859,5.53470779,1806.8,1806.7,4.35565059]
[1746445062168,10.22754994,1806.9,1806.7,4.35565059]
[1746445062467,4.693,1806.9,1806.7,4.35565059]
[1746445062770,4.693,1806.9,1806.8,3.28108789]
[1746445062971,5.53372807,1807.1,1807.0,2.75701909]
[1746445064938,18.0,1807.1,1807.0,2.75701909]
[1746445065135,18.0,1807.1,1807.0,9.22153892]
[1746445065342,18.0,1807.1,1807.0,12.00882051]
[1746445066274,18.0,1807.1,1807.0,6.4747862]
[1746445066890,18.0,1807.1,1807.0,12.00882051]
[1746445067948,0.00130379,1807.2,1807.0,12.00882051]
[1746445068647,0.00130379,1807.2,1807.0,6.4747862]
[1746445068853,0.00130379,1807.2,1807.0,12.00875933]
[1746445069182,0.00130379,1807.2,1807.1,0.55]
[1746445069478,0.00130379,1807.2,1807.1,3.28008066]
[1746445070765,0.00130379,1807.2,1807.1,3.73557717]
[1746445070960,5.53472565,1807.2,1807.1,3.73557717]
[1746445071188,5.53472565,1807.2,1807.1,2.73008066]
[1746445071685,5.53403431,1807.0,1806.9,2.77745934]
[1746445072098,5.53379278,1807.1,1806.9,2.77745934]
[1746445072453,5.53491309,1807.2,1806.9,2.77745934]
[1746445072685,0.00130379,1807.2,1807.1,2.73008066]
[1746445072985,0.00130379,1807.2,1807.1,3.28008066]
[1746445074788,0.00130379,1807.2,1807.1,4.03718066]
[1746445075003,0.00130379,1807.2,1807.1,10.09077682]
[1746445075207,0.00130379,1807.2,1807.1,10.47126234]
[1746445075357,0.00130379,1807.2,1807.1,12.01643984]
[1746445075786,0.00130379,1807.2,1807.1,18.18643984]
[1746445075978,0.00130379,1807.2,1807.1,19.85218584]
[1746445076158,0.00130379,1807.2,1807.1,10.67171726]
[1746445076491,0.00130379,1807.2,1807.1,3.19461726]
[1746445076668,0.00130379,1807.2,1807.1,4.57001726]
[1746445076869,5.53472565,1807.2,1807.1,4.57001726]
[1746445077060,5.53472565,1807.2,1807.1,4.10548066]
[1746445077594,0.00130379,1807.2,1807.1,4.10548066]
[1746445077962,5.53472565,1807.2,1807.1,4.10548066]
[1746445078158,0.00130379,1807.2,1807.1,4.10548066]
[1746445078681,5.53472565,1807.2,1807.1,4.10548066]
[1746445078881,5.53490284,1807.2,1807.1,2.73008066]
[1746445080661,5.53372807,1807.1,1807.0,2.75701909]
[1746445081369,5.53372807,1807.1,1806.9,2.77745934]
[1746445081569,5.53391284,1807.1,1806.9,2.77745934]
[1746445081770,5.53491313,1807.2,1807.1,2.73008066]
[1746445081986,3.00130379,1807.2,1807.1,3.66056618]
[1746445082169,0.00130379,1807.2,1807.1,3.11056618]
[1746445082376,5.53472565,1807.2,1807.1,2.73008066]
[1746445083102,5.53372807,1807.1,1807.0,3.30701909]
[1746445083566,5.53403431,1807.0,1806.9,3.32745934]
[1746445083763,9.90921713,1807.0,1806.9,2.77745934]
[1746445083969,5.53474749,1806.8,1806.6,2.75128778]
[1746445084170,5.53474749,1806.8,1806.6,3.1317733]
[1746445085191,5.95801873,1806.8,1806.6,3.1317733]
[1746445085394,5.53440507,1806.9,1806.6,3.5963099]
[1746445085597,8.53440507,1806.9,1806.8,2.73108789]
[1746445085967,5.53464688,1806.8,1806.7,2.73072847]
[1746445088110,3.0,1806.9,1806.8,3.51258789]
[1746445088810,3.41818418,1806.9,1806.8,3.51258789]
[1746445088978,8.95252476,1806.9,1806.8,3.51258789]
[1746445089178,8.95252476,1806.9,1806.8,2.73108789]
[1746445090003,14.0689048,1806.9,1806.8,2.73108789]
[1746445090188,5.53548319,1806.6,1806.5,2.70152635]
[1746445091937,13.27048319,1806.6,1806.5,2.70152635]
[1746445098332,10.2702596,1806.6,1806.5,3.54654847]
[1746445099116,7.79039171,1806.6,1806.5,3.54654847]
[1746445099512,7.79039171,1806.6,1806.5,3.16606295]
[1746445101308,7.77679971,1806.6,1806.5,3.16606295]
[1746445101736,6.3964323,1806.6,1806.5,3.16606295]
[1746445102137,10.13762952,1806.6,1806.5,3.16606295]
[1746445102338,4.97266249,1806.2,1806.1,3.1623801]
[1746445102607,4.97266249,1806.2,1806.0,0.751]
[1746445102608,8.53679198,1806.1,1806.0,2.73235042]
[1746445103031,7.32151232,1806.1,1805.9,2.748599]
[1746445103221,5.53709856,1806.0,1805.9,2.748599]
[1746445104240,5.53709856,1806.0,1805.9,3.12908452]
[1746445104415,10.27309856,1806.0,1805.9,3.12908452]
[1746445104809,10.02722755,1806.0,1805.9,3.12908452]
[1746445105332,13.02722755,1806.0,1805.9,3.12908452]
[1746445106034,12.77763124,1806.0,1805.9,3.89598452]
[1746445106227,3.0,1806.0,1805.9,3.89598452]
[1746445106434,13.28309856,1806.0,1805.9,3.89598452]
[1746445106637,10.28309856,1806.0,1805.9,3.89598452]
[1746445106860,4.746,1806.0,1805.9,3.89598452]
[1746445107641,10.28309856,1806.0,1805.9,3.89598452]
[1746445107941,17.65841371,1806.0,1805.8,2.73608001]
[1746445108133,5.53740517,1805.9,1805.8,2.73608001]
[1746445110235,5.53771181,1805.8,1805.7,2.90459125]
[1746445110435,10.65409185,1805.8,1805.7,2.90459125]
[1746445112856,5.53924555,1805.3,1805.2,3.5527645]
[1746445113025,5.53924555,1805.3,1805.2,3.97858972]
[1746445113827,5.53924555,1805.3,1805.2,4.35907524]
[1746445114367,10.28614047,1805.4,1805.2,4.35907524]
[1746445114755,4.37518282,1805.5,1805.3,3.09759144]
[1746445114949,0.00130379,1805.9,1805.5,2.72029243]
[1746445115124,11.07655852,1805.9,1805.7,2.76331005]
[1746445115461,4.87739884,1805.8,1805.7,2.76331005]
[1746445115760,5.53888766,1805.9,1805.7,2.76331005]
[1746445115960,0.00130379,1805.9,1805.8,5.91819733]
[1746445116166,0.00130379,1805.9,1805.8,10.63057307]
[1746445116371,0.00130379,1805.9,1805.8,5.03748461]
[1746445116725,0.00130379,1805.9,1805.8,10.57519642]
[1746445117023,0.00130379,1805.9,1805.8,12.22166814]
[1746445117458,0.00130379,1805.9,1805.8,6.68395633]
[1746445117663,0.00130379,1805.9,1805.8,6.30347081]
[1746445118866,0.00130379,1805.9,1805.8,12.27703803]
[1746445119031,0.00130379,1805.9,1805.8,6.68395633]
[1746445120241,0.00130379,1805.9,1805.8,4.10699909]
[1746445120774,5.53870896,1805.9,1805.8,4.10699909]
[1746445120976,0.00130379,1805.9,1805.8,4.10699909]
[1746445121780,5.53722717,1806.0,1805.8,4.10699909]
[1746445122072,5.53694359,1806.1,1805.8,4.10699909]
[1746445122375,5.53660464,1806.2,1806.0,2.713334]
[1746445122551,11.07334296,1806.2,1806.0,3.26818032]
[1746445122753,5.53679198,1806.1,1806.0,3.26818032]
[1746445125691,9.91178746,1806.2,1806.0,3.70724917]
[1746445125902,5.53660464,1806.2,1806.1,3.34326191]
[1746445126376,9.91178746,1806.2,1806.1,3.34326191]
[1746445128289,9.91178746,1806.2,1806.1,3.78233076]
[1746445130594,10.65298468,1806.2,1806.1,3.34326191]
[1746445130944,9.91178746,1806.2,1806.1,3.34326191]
[1746445131150,9.91178746,1806.2,1806.1,3.78233076]
[1746445132089,5.53631119,1806.3,1806.1,5.10033076]
[1746445132263,5.53648543,1806.2,1806.1,3.78233076]
[1746445133786,7.90548008,1806.2,1806.1,3.78233076]
[1746445135873,10.90548008,1806.2,1806.1,3.78233076]
[1746445136189,15.65248008,1806.2,1806.1,3.78233076]
[1746445136581,15.61901719,1806.2,1806.1,3.78233076]
[1746445136875,12.58581573,1806.2,1806.1,3.78233076]
[1746445137064,12.58581573,1806.2,1806.1,4.56553076]
[1746445137568,12.58581573,1806.2,1806.1,3.78233076]
[1746445140193,13.27951295,1806.2,1806.1,3.78233076]
[1746445140559,12.58581573,1806.2,1806.1,3.78233076]
[1746445140961,12.65248008,1806.2,1806.1,3.78233076]
[1746445141599,13.3461773,1806.2,1806.1,3.78233076]
[1746445142688,5.53815642,1805.7,1805.5,3.48179243]
[1746445142897,7.90715107,1805.7,1805.6,3.25211743]
[1746445143492,7.90715107,1805.7,1805.6,3.65459721]
[1746445144690,8.33023546,1805.7,1805.6,3.65459721]
[1746445146795,8.33023546,1805.7,1805.6,6.63255686]
[1746445148318,0.42308439,1805.7,1805.6,8.63701255]
[1746445148481,0.42308439,1805.7,1805.6,14.17533776]
[1746445148818,5.53729819,1806.0,1805.9,2.71730703]
[1746445148972,5.53729819,1806.0,1805.9,3.22591616]
[1746445149366,6.23099541,1806.0,1805.9,3.22591616]
[1746445149710,5.53740517,1805.9,1805.8,2.71050393]
[1746445149915,7.90670646,1805.8,1805.7,3.29930082]
[1746445150419,8.60040368,1805.8,1805.7,3.29930082]
[1746445151213,9.01525562,1805.8,1805.7,3.29930082]
[1746445152469,8.3215584,1805.8,1805.7,6.27726047]
[1746445154435,9.01525562,1805.8,1805.7,5.76865134]
[1746445155129,5.95256375,1805.8,1805.7,5.76865134]
[1746445155930,5.95256375,1805.8,1805.7,6.27726047]
[1746445156515,0.41485194,1805.8,1805.7,6.27726047]
[1746445156678,10.29517294,1806.0,1805.7,8.03914064]
[1746445156882,10.29517294,1806.0,1805.9,2.71730703]
[1746445157104,12.66416759,1806.0,1805.9,3.22591616]
[1746445157509,13.35786481,1806.0,1805.9,3.22591616]
[1746445157696,16.35786481,1806.0,1805.9,3.22591616]
[1746445159087,13.08390887,1806.0,1805.9,3.22591616]
[1746445159489,13.08390887,1806.0,1805.9,6.20387581]
[1746445160422,16.77760609,1806.0,1805.9,6.20387581]
[1746445161003,19.14660074,1806.0,1805.9,6.20387581]
[1746445161202,16.77760609,1806.0,1805.9,6.20387581]
[1746445161819,19.14660074,1806.0,1805.9,6.20387581]
[1746445162031,16.77760609,1806.0,1805.9,6.20387581]
[1746445163124,14.29682942,1806.0,1805.9,6.20387581]
[1746445165095,11.32590887,1806.0,1805.9,6.20387581]
[1746445165295,16.08390887,1806.0,1805.9,6.20387581]
[1746445166336,13.08390887,1806.0,1805.9,6.20387581]
[1746445166627,13.08390887,1806.0,1805.9,7.03137581]
[1746445168233,12.97697836,1806.0,1805.9,7.03137581]
[1746445168940,5.17774128,1806.0,1805.9,7.43392795]
[1746445169840,5.17774128,1806.0,1805.9,8.17732075]
[1746445170936,4.54083405,1806.0,1805.9,8.17732075]
[1746445171130,2.82200074,1806.0,1805.9,8.17732075]
[1746445172847,2.82200074,1806.0,1805.9,7.77476861]
[1746445173050,2.82200074,1806.0,1805.9,8.32476861]
[1746445173752,11.42179117,1806.0,1805.9,6.20387581]
[1746445174257,11.84752134,1806.0,1805.9,6.20387581]
[1746445174425,5.61672556,1806.0,1805.9,6.20387581]
[1746445174614,5.61672556,1806.0,1805.9,7.00097581]
[1746445175252,11.15382412,1806.0,1805.9,6.20387581]
[1746445175871,14.84752134,1806.0,1805.9,6.20387581]
[1746445178559,14.15382412,1806.0,1805.9,6.20387581]
[1746445180155,11.33182338,1806.0,1805.9,6.20387581]
[1746445180452,16.08182338,1806.0,1805.9,6.20387581]
[1746445180751,13.08182338,1806.0,1805.9,6.20387581]
[1746445181921,16.7755206,1806.0,1805.9,6.20387581]
[1746445184078,19.14451525,1806.0,1805.9,6.20387581]
[1746445184773,16.7755206,1806.0,1805.9,6.20387581]
[1746445186682,3.0,1805.9,1805.6,2.7435083]
[1746445186980,10.90731986,1805.6,1805.5,4.78374336]
[1746445187280,15.65731986,1805.6,1805.5,4.78374336]
[1746445188280,15.65731986,1805.6,1805.5,3.20151172]
[1746445188787,13.28832521,1805.6,1805.5,3.20151172]
[1746445189692,8.53893873,1805.4,1805.3,2.7337464]
[1746445189989,5.5395524,1805.2,1805.1,2.74782395]
[1746445190160,5.5395524,1805.2,1805.1,3.21404898]
[1746445192191,8.53913192,1805.4,1805.3,2.7337464]
[1746445192387,13.28913192,1805.4,1805.3,3.60252357]
[1746445192552,8.53913192,1805.4,1805.3,3.60252357]
[1746445192752,8.96052096,1805.4,1805.3,3.60252357]
[1746445193053,0.42138904,1805.4,1805.3,4.80751593]
[1746445193247,10.28870364,1805.5,1805.3,4.80751593]
[1746445193453,5.53893873,1805.4,1805.3,4.36482357]
[1746445194166,10.28870364,1805.5,1805.3,4.36482357]
[1746445194680,4.75,1805.5,1805.3,4.36482357]
[1746445195384,10.71060344,1805.5,1805.3,3.96227143]
[1746445195592,5.53893873,1805.4,1805.3,3.96227143]
[1746445195790,7.90793338,1805.4,1805.3,3.19997143]
[1746445195947,8.53924555,1805.3,1805.0,2.78450093]
[1746445196151,3.0,1805.1,1805.0,3.25072596]
[1746445196452,3.0,1805.2,1805.0,3.25072596]
[1746445196680,5.53985928,1805.1,1805.0,3.25072596]
[1746445196884,8.53962485,1805.2,1805.0,3.25072596]
[1746445197098,5.53962485,1805.2,1805.0,3.25072596]
[1746445197282,5.53962485,1805.2,1805.1,0.46622503]